[Event "27th Seacost Trophy 2017"]
[Site "Eforie Nord"]
[Date "2017.06.24"]
[Round "6"]
[White "Peptan, Corina-Isabela"]
[Black "Antonica, Dragos-Andrei"]
[Result "1-0"]
[ECO "E14"]
[WhiteElo "2403"]
[BlackElo "2133"]
[Annotator "NA"]
[PlyCount "89"]
[EventDate "2017.??.??"]
[EventType "swiss"]
[EventCountry "ROU"]
[SourceTitle "playchess.com"]
[Source "ChessBase"]
[SourceQuality "1"]
[TimeControl "5400+30"]

1. d4 {[%emt 0:00:00]} e6 {[%emt 0:00:13]} 2. c4 {[%emt 0:00:29]} Nf6 {[%emt 0:00:31]} 3. Nf3 {[%emt 0:00:10]} b6 {[%emt 0:00:34]} 4. e3 {[%emt 0:00:39]} Bb7 {[%emt 0:00:07]} 5. Nc3 {[%emt 0:01:36]} Bb4 {[%emt 0:04:06]} 6. Bd2 {[%emt 0:00:25]} c5 {[%emt 0:03:26]} 7. a3 {[%emt 0:18:26]} cxd4 {[%emt 0:06:09]} 8. axb4 {[%emt 0:02:22]} dxc3 {[%emt 0:01:07]} 9. Bxc3 {[%emt 0:00:02]} O-O {[%emt 0:01:24]} 10. Qd4 {[%emt 0:20:42]} Nc6 {[%emt 0:09:59]} 11. Qh4 {[%emt 0:02:53]} Ne8 {[%emt 0:00:37]} 12. b5 {[%emt 0:06:50]} Qxh4 {[%emt 0:05:31]} 13. Nxh4 {[%emt 0:00:49]} Ne7 {[%emt 0:00:18]} 14. Bb4 {[%emt 0:00:13]} d6 {[%emt 0:00:09]} 15. Be2 {[%emt 0:00:12]} f5 {[%emt 0:01:13]} 16. Bf3 {[%emt 0:01:23]} Bxf3 {[%emt 0:00:40]} 17. Nxf3 {[%emt 0:00:02]} Rc8 {[%emt 0:05:40]} 18. b3 {[%emt 0:00:07]} Rc7 {[%emt 0:00:34]} 19. Ke2 {[%emt 0:00:06]} Nc8 {[%emt 0:02:26]} 20. Rhd1 {[%emt 0:00:41]} e5 {[%emt 0:04:05]} 21. Ne1 {[%emt 0:17:55]} g5 {[%emt 0:08:22]} 22. f4 {[%emt 0:04:05]} gxf4 {[%emt 0:01:47]} 23. exf4 {[%emt 0:00:01]} exf4 {[%emt 0:12:53]} 24. Bd2 {[%emt 0:07:41]} Nf6 {[%emt 0:02:52]} 25. Bxf4 {[%emt 0:00:10]} Ne4 {[%emt 0:02:04]} 26. Kf1 {[%emt 0:00:12]} Re7 {[%emt 0:02:25]} 27. Nf3 {[%emt 0:01:27]} Rfe8 {[%emt 0:01:08]} 28. Rd5 {[%emt 0:05:07]} Rg7 {[%emt 0:02:35]} 29. Rdd1 {[%emt 0:04:59]} Rge7 {[%emt 0:00:38]} 30. g3 {[%emt 0:00:13]} Nc5 {[%emt 0:02:36]} 31. Nd4 {[%emt 0:00:34]} Re4 {[%emt 0:01:09]} 32. Rab1 {[%emt 0:02:24]} Ne6 {[%emt 0:06:11]} 33. Nxe6 {[%emt 0:00:01]} R8xe6 {[%emt 0:00:03]} 34. Rd2 {[%emt 0:00:47]} Ne7 {[%emt 0:03:02]} 35. Bxd6 {[%emt 0:00:34]} Ng6 {[%emt 0:00:06]} 36. Rbd1 {[%emt 0:01:04]} Re3 {[%emt 0:00:47]} 37. b4 {[%emt 0:00:17]} Ne5 {[%emt 0:01:44]} 38. Bxe5 {[%emt 0:00:11]} R6xe5 {[%emt 0:00:04]} 39. Rd7 {[%emt 0:01:11]} Re2 {[%emt 0:00:56]} 40. Rxa7 {[%emt 0:00:06]} Re7 {[%emt 0:00:20]} 41. Rxe7 {[%emt 0:00:12]} Rxe7 {[%emt 0:00:02]} 42. c5 {[%emt 0:00:36]} Re5 {[%emt 0:00:19]} 43. c6 {[%emt 0:00:47]} Re8 {[%emt 0:00:12]} 44. c7 {[%emt 0:00:16]} Kf7 {[%emt 0:00:12]} 45. Rd8 {[%emt 0:00:14]} 1-0

[Event "27th Seacost Trophy 2017"]
[Site "Eforie Nord"]
[Date "2017.06.24"]
[Round "6"]
[White "Soltanici, Ruslan"]
[Black "Olinici, Ecaterina"]
[Result "1-0"]
[ECO "C78"]
[WhiteElo "2393"]
[BlackElo "1437"]
[Annotator "NA"]
[PlyCount "71"]
[EventDate "2017.??.??"]
[EventType "swiss"]
[EventCountry "ROU"]
[SourceTitle "playchess.com"]
[Source "ChessBase"]
[SourceQuality "1"]
[TimeControl "5400+30"]

1. e4 {[%emt 0:00:00]} e5 {[%emt 0:00:11]} 2. Nf3 {[%emt 0:00:00]} Nc6 {[%emt 0:00:11]} 3. Bb5 {[%emt 0:00:03]} a6 {[%emt 0:00:18]} 4. Ba4 {[%emt 0:00:15]} Nf6 {[%emt 0:00:09]} 5. O-O {[%emt 0:00:14]} b5 {[%emt 0:00:09]} 6. Bb3 {[%emt 0:00:08]} Bc5 {[%emt 0:00:18]} 7. c3 {[%emt 0:00:40]} d6 {[%emt 0:00:06]} 8. a4 {[%emt 0:00:28]} Rb8 {[%emt 0:00:33]} 9. d4 {[%emt 0:01:41]} Bb6 {[%emt 0:00:09]} 10. a5 {[%emt 0:01:05]} Ba7 {[%emt 0:02:13]} 11. Be3 {[%emt 0:00:55]} exd4 {[%emt 0:21:37]} 12. cxd4 {[%emt 0:01:22]} O-O {[%emt 0:01:11]} 13. h3 {[%emt 0:07:11]} h6 {[%emt 0:15:04]} 14. Re1 {[%emt 0:18:50]} Re8 {[%emt 0:19:01]} 15. d5 {[%emt 0:17:15]} Bxe3 {[%emt 0:01:33]} 16. Rxe3 {[%emt 0:00:08]} Ne7 {[%emt 0:08:07]} 17. Nc3 {[%emt 0:02:59]} Bb7 {[%emt 0:01:40]} 18. Nd4 {[%emt 0:06:00]} b4 {[%emt 0:04:40]} 19. Nce2 {[%emt 0:14:05]} c5 {[%emt 0:03:40]} 20. Nf3 {[%emt 0:01:22]} Ng6 {[%emt 0:02:31]} 21. Ng3 {[%emt 0:01:01]} Bc8 {[%emt 0:00:49]} 22. Bc4 {[%emt 0:02:31]} Ra8 {[%emt 0:04:35]} 23. Nd2 {[%emt 0:02:08]} Nd7 {[%emt 0:01:22]} 24. Bf1 {[%emt 0:01:17]} Nde5 {[%emt 0:04:06]} 25. Nh5 {[%emt 0:03:30]} Qg5 {[%emt 0:03:30]} 26. Be2 {[%emt 0:11:39]} Qh4 {[%emt 0:03:46]} 27. Qf1 {[%emt 0:01:53]} Nf4 {[%emt 0:01:52]} 28. Nxf4 {[%emt 0:00:21]} Qxf4 {[%emt 0:00:04]} 29. g3 {[%emt 0:00:06]} Qf6 {[%emt 0:00:44]} 30. f4 {[%emt 0:00:10]} Ng6 {[%emt 0:00:08]} 31. Nc4 {[%emt 0:00:31]} Ra7 {[%emt 0:00:43]} 32. Bg4 {[%emt 0:04:35]} Bxg4 {[%emt 0:00:32]} 33. hxg4 {[%emt 0:00:01]} Rae7 {[%emt 0:00:12]} 34. Rae1 {[%emt 0:00:28]} Qd4 {[%emt 0:00:16]} 35. Nxd6 {[%emt 0:01:02]} Rd8 {[%emt 0:01:12]} 36. Nf5 {[%emt 0:00:31]} 1-0

[Event "27th Seacost Trophy 2017"]
[Site "Eforie Nord"]
[Date "2017.06.24"]
[Round "6"]
[White "Ileana, George"]
[Black "Bonte, Andrei-Mihai"]
[Result "1/2-1/2"]
[ECO "C74"]
[WhiteElo "2212"]
[BlackElo "2310"]
[Annotator "NA"]
[PlyCount "123"]
[EventDate "2017.??.??"]
[EventType "swiss"]
[EventCountry "ROU"]
[SourceTitle "playchess.com"]
[Source "ChessBase"]
[SourceQuality "1"]
[TimeControl "5400+30"]

1. e4 {[%emt 0:00:00]} e5 {[%emt 0:01:51]} 2. Nf3 {[%emt 0:00:00]} Nc6 {[%emt 0:00:11]} 3. Bb5 {[%emt 0:00:00]} a6 {[%emt 0:01:06]} 4. Ba4 {[%emt 0:00:00]} d6 {[%emt 0:00:06]} 5. c3 {[%emt 0:00:00]} Nf6 {[%emt 0:04:19]} 6. d3 {[%emt 0:00:00]} Be7 {[%emt 0:04:11]} 7. O-O {[%emt 0:00:16]} O-O {[%emt 0:00:08]} 8. Re1 {[%emt 0:00:02]} b5 {[%emt 0:02:03]} 9. Bc2 {[%emt 0:00:08]} h6 {[%emt 0:04:03]} 10. Nbd2 {[%emt 0:00:47]} Re8 {[%emt 0:00:29]} 11. Nf1 {[%emt 0:00:33]} Bf8 {[%emt 0:02:38]} 12. Ng3 {[%emt 0:00:08]} Bb7 {[%emt 0:08:57]} 13. h3 {[%emt 0:01:59]} Nb8 {[%emt 0:12:02]} 14. Nh2 {[%emt 0:00:55]} d5 {[%emt 0:03:15]} 15. Ng4 {[%emt 0:00:43]} dxe4 {[%emt 0:02:40]} 16. dxe4 {[%emt 0:03:25]} Nbd7 {[%emt 0:03:28]} 17. Nxf6+ {[%emt 0:02:39]} Nxf6 {[%emt 0:00:08]} 18. Qxd8 {[%emt 0:00:18]} Raxd8 {[%emt 0:00:14]} 19. Be3 {[%emt 0:00:09]} Nd7 {[%emt 0:05:14]} 20. Red1 {[%emt 0:00:11]} Nc5 {[%emt 0:00:38]} 21. b3 {[%emt 0:00:48]} a5 {[%emt 0:03:44]} 22. f3 {[%emt 0:02:10]} b4 {[%emt 0:08:48]} 23. cxb4 {[%emt 0:00:56]} axb4 {[%emt 0:00:28]} 24. Rac1 {[%emt 0:00:50]} Ne6 {[%emt 0:00:54]} 25. Bd3 {[%emt 0:01:51]} c5 {[%emt 0:04:02]} 26. Bb5 {[%emt 0:00:50]} Rxd1+ {[%emt 0:00:33]} 27. Rxd1 {[%emt 0:00:02]} Ra8 {[%emt 0:00:21]} 28. Rd2 {[%emt 0:00:27]} Nd4 {[%emt 0:05:47]} 29. Bxd4 {[%emt 0:00:09]} cxd4 {[%emt 0:00:34]} 30. Kf1 {[%emt 0:00:12]} Rc8 {[%emt 0:00:34]} 31. Bc4 {[%emt 0:00:06]} g6 {[%emt 0:03:00]} 32. Ke2 {[%emt 0:03:45]} Kg7 {[%emt 0:00:23]} 33. Kd3 {[%emt 0:00:05]} Be7 {[%emt 0:01:43]} 34. Rc2 {[%emt 0:01:04]} Bh4 {[%emt 0:03:46]} 35. Ne2 {[%emt 0:04:09]} f5 {[%emt 0:00:06]} 36. Bd5 {[%emt 0:07:10]} Rxc2 {[%emt 0:05:52]} 37. Kxc2 {[%emt 0:00:06]} Bxd5 {[%emt 0:00:30]} 38. exd5 {[%emt 0:00:04]} Bf2 {[%emt 0:08:09]} 39. Kd3 {[%emt 0:00:10]} Kf6 {[%emt 0:00:08]} 40. Kc4 {[%emt 0:00:05]} g5 {[%emt 0:00:22]} 41. g4 {[%emt 0:01:32]} Be1 {[%emt 0:02:14]} 42. gxf5 {[%emt 0:17:35]} Kxf5 {[%emt 0:00:14]} 43. Kd3 {[%emt 0:00:07]} h5 {[%emt 0:01:00]} 44. d6 {[%emt 0:00:09]} Ke6 {[%emt 0:00:07]} 45. d7 {[%emt 0:02:20]} Kxd7 {[%emt 0:00:13]} 46. Nc1 {[%emt 0:00:08]} Ke6 {[%emt 0:01:27]} 47. Ke4 {[%emt 0:00:15]} Bd2 {[%emt 0:00:45]} 48. Nd3 {[%emt 0:00:09]} Kf6 {[%emt 0:00:30]} 49. Nxe5 {[%emt 0:00:26]} Bc3 {[%emt 0:00:17]} 50. Nc4 {[%emt 0:00:37]} Ke6 {[%emt 0:00:30]} 51. a4 {[%emt 0:02:36]} bxa3 {[%emt 0:00:06]} 52. Nxa3 {[%emt 0:00:03]} Kd6 {[%emt 0:00:52]} 53. Nb1 {[%emt 0:07:22]} Kc5 {[%emt 0:00:35]} 54. Kd3 {[%emt 0:00:28]} Bb4 {[%emt 0:00:23]} 55. Nd2 {[%emt 0:01:37]} Kd5 {[%emt 0:00:22]} 56. Ne4 {[%emt 0:00:10]} Ke5 {[%emt 0:00:52]} 57. Nxg5 {[%emt 0:06:00]} Kf4 {[%emt 0:00:06]} 58. Ne6+ {[%emt 0:00:11]} Kxf3 {[%emt 0:00:24]} 59. Ng7 {[%emt 0:00:11]} h4 {[%emt 0:00:55]} 60. Nf5 {[%emt 0:00:19]} Be1 {[%emt 0:00:20]} 61. Kxd4 {[%emt 0:00:48]} Kg2 {[%emt 0:00:39]} 62. Nxh4+ 1/2-1/2

[Event "27th Seacost Trophy 2017"]
[Site "Eforie Nord"]
[Date "2017.06.24"]
[Round "6"]
[White "Ceres, Dragos"]
[Black "Petre, Nad-Titus"]
[Result "1/2-1/2"]
[ECO "C41"]
[WhiteElo "2002"]
[BlackElo "2334"]
[Annotator "NA"]
[PlyCount "38"]
[EventDate "2017.??.??"]
[EventType "swiss"]
[EventCountry "ROU"]
[SourceTitle "playchess.com"]
[Source "ChessBase"]
[SourceQuality "1"]
[TimeControl "5400+30"]

1. e4 {[%emt 0:00:00]} e5 {[%emt 0:06:13]} 2. Nf3 {[%emt 0:00:00]} d6 {[%emt 0:00:13]} 3. d4 {[%emt 0:00:00]} exd4 {[%emt 0:00:38]} 4. Nxd4 {[%emt 0:00:10]} Nf6 {[%emt 0:00:04]} 5. Nc3 {[%emt 0:00:12]} Be7 {[%emt 0:00:04]} 6. Be2 {[%emt 0:00:48]} O-O {[%emt 0:00:26]} 7. O-O {[%emt 0:00:24]} Re8 {[%emt 0:01:00]} 8. f4 {[%emt 0:05:31]} Bf8 {[%emt 0:02:15]} 9. Bf3 {[%emt 0:00:17]} c5 {[%emt 0:01:17]} 10. Nb3 {[%emt 0:01:53]} Nc6 {[%emt 0:01:06]} 11. Kh1 {[%emt 0:01:44]} a5 {[%emt 0:07:39]} 12. a4 {[%emt 0:01:15]} Be6 {[%emt 0:00:47]} 13. Nd5 {[%emt 0:02:33]} g6 {[%emt 0:14:19]} 14. c3 {[%emt 0:03:54]} Bg7 {[%emt 0:09:26]} 15. Nd2 {[%emt 0:02:04]} Bxd5 {[%emt 0:07:16]} 16. exd5 {[%emt 0:00:10]} Ne7 {[%emt 0:00:10]} 17. Nc4 {[%emt 0:02:54]} Nf5 {[%emt 0:02:53]} 18. Bd2 {[%emt 0:08:36]} Nh4 {[%emt 0:07:34]} 19. Re1 {[%emt 0:01:02]} Qc7 {[%emt 0:07:26]} 1/2-1/2

[Event "27th Seacost Trophy 2017"]
[Site "Eforie Nord"]
[Date "2017.06.25"]
[Round "7"]
[White "Bonte, Andrei-Mihai"]
[Black "Martinovici, Ilie"]
[Result "1-0"]
[ECO "D60"]
[WhiteElo "2310"]
[BlackElo "2097"]
[Annotator "NA"]
[PlyCount "51"]
[EventDate "2017.??.??"]
[EventType "swiss"]
[EventCountry "ROU"]
[SourceTitle "playchess.com"]
[Source "ChessBase"]
[SourceQuality "1"]
[TimeControl "5400+30"]

1. c4 {[%emt 0:01:03]} Nf6 {[%emt 0:00:05]} 2. Nc3 {[%emt 0:00:14]} e6 {[%emt 0:00:02]} 3. Nf3 {[%emt 0:04:53]} d5 {[%emt 0:01:12]} 4. d4 {[%emt 0:00:15]} Be7 {[%emt 0:01:08]} 5. Bg5 {[%emt 0:02:55]} O-O {[%emt 0:01:24]} 6. e3 {[%emt 0:00:07]} Nbd7 {[%emt 0:02:05]} 7. Bd3 {[%emt 0:02:07]} dxc4 {[%emt 0:02:00]} 8. Bxc4 {[%emt 0:00:02]} c5 {[%emt 0:00:00]} 9. O-O {[%emt 0:00:28]} a6 {[%emt 0:01:47]} 10. a4 {[%emt 0:00:06]} cxd4 {[%emt 0:00:53]} 11. exd4 {[%emt 0:00:12]} Nb6 {[%emt 0:00:41]} 12. Bb3 {[%emt 0:03:04]} Nbd5 {[%emt 0:04:33]} 13. Qe2 {[%emt 0:06:00]} Nxc3 {[%emt 0:02:39]} 14. bxc3 {[%emt 0:00:03]} b6 {[%emt 0:00:12]} 15. Ne5 {[%emt 0:14:14]} Bb7 {[%emt 0:02:36]} 16. Nxf7 {[%emt 0:01:45]} Rxf7 {[%emt 0:00:04]} 17. Bxe6 {[%emt 0:00:40]} Bd5 {[%emt 0:03:18]} 18. Bxf7+ {[%emt 0:00:13]} Bxf7 {[%emt 0:00:01]} 19. Rfe1 {[%emt 0:01:28]} Ra7 {[%emt 0:01:21]} 20. Rab1 {[%emt 0:00:13]} Nd5 {[%emt 0:03:42]} 21. Bxe7 {[%emt 0:02:40]} Rxe7 {[%emt 0:06:36]} 22. Qxa6 {[%emt 0:00:15]} Rxe1+ {[%emt 0:00:11]} 23. Rxe1 {[%emt 0:00:02]} Nxc3 {[%emt 0:00:07]} 24. Rc1 Qe8 25. Kf1 {[%emt 0:06:02]} Qc6 {[%emt 0:00:30]} 26. Rxc3 {[%emt 0:00:20]} 1-0

[Event "27th Seacost Trophy 2017"]
[Site "Eforie Nord"]
[Date "2017.06.25"]
[Round "7"]
[White "Schitco, Ivan"]
[Black "Ceres, Dragos"]
[Result "1/2-1/2"]
[ECO "A20"]
[WhiteElo "2091"]
[BlackElo "2002"]
[Annotator "NA"]
[PlyCount "59"]
[EventDate "2017.??.??"]
[EventType "swiss"]
[EventCountry "ROU"]
[SourceTitle "playchess.com"]
[Source "ChessBase"]
[SourceQuality "1"]
[TimeControl "5400+30"]

1. c4 {[%emt 0:00:00]} e5 {[%emt 0:00:31]} 2. g3 {[%emt 0:00:00]} Nf6 {[%emt 0:00:12]} 3. Bg2 {[%emt 0:00:00]} Bc5 {[%emt 0:02:19]} 4. Nc3 {[%emt 0:00:39]} c6 {[%emt 0:01:42]} 5. Qb3 {[%emt 0:09:30]} O-O {[%emt 0:00:52]} 6. e3 {[%emt 0:01:03]} Re8 {[%emt 0:00:34]} 7. d3 {[%emt 0:00:58]} Na6 {[%emt 0:01:28]} 8. Nge2 {[%emt 0:04:29]} Bf8 {[%emt 0:07:51]} 9. O-O {[%emt 0:05:09]} Nc7 {[%emt 0:02:27]} 10. e4 {[%emt 0:04:55]} Ne6 {[%emt 0:02:39]} 11. h3 {[%emt 0:02:31]} Bc5 {[%emt 0:04:42]} 12. Na4 {[%emt 0:03:55]} Nd4 {[%emt 0:00:43]} 13. Qd1 {[%emt 0:03:40]} Nxe2+ {[%emt 0:00:11]} 14. Qxe2 {[%emt 0:00:05]} Bd4 {[%emt 0:00:06]} 15. Nc3 {[%emt 0:05:12]} d5 {[%emt 0:15:23]} 16. cxd5 {[%emt 0:03:40]} cxd5 {[%emt 0:00:25]} 17. exd5 {[%emt 0:12:39]} Bxc3 {[%emt 0:04:19]} 18. bxc3 {[%emt 0:00:07]} Nxd5 {[%emt 0:00:06]} 19. Bd2 {[%emt 0:01:30]} Nf6 {[%emt 0:02:57]} 20. Rfd1 {[%emt 0:04:04]} Rb8 {[%emt 0:06:37]} 21. c4 {[%emt 0:04:09]} Qc7 {[%emt 0:03:58]} 22. Bg5 {[%emt 0:03:14]} Be6 {[%emt 0:07:06]} 23. Bxf6 {[%emt 0:04:22]} gxf6 {[%emt 0:00:05]} 24. Qh5 {[%emt 0:00:11]} Kg7 {[%emt 0:01:31]} 25. d4 {[%emt 0:04:22]} exd4 {[%emt 0:02:58]} 26. Rxd4 {[%emt 0:00:22]} Qe5 {[%emt 0:00:29]} 27. Qh4 {[%emt 0:06:42]} Rbd8 {[%emt 0:01:53]} 28. Bd5 {[%emt 0:02:41]} Bxd5 {[%emt 0:02:04]} 29. cxd5 {[%emt 0:00:13]} Rxd5 {[%emt 0:01:01]} 30. Qg4+ {[%emt 0:02:01]} 1/2-1/2

[Event "27th Seacost Trophy 2017"]
[Site "Eforie Nord"]
[Date "2017.06.25"]
[Round "7"]
[White "Vasiliu, Cosmin"]
[Black "Soltanici, Ruslan"]
[Result "1/2-1/2"]
[ECO "B23"]
[WhiteElo "2016"]
[BlackElo "2393"]
[Annotator "NA"]
[PlyCount "53"]
[EventDate "2017.??.??"]
[EventType "swiss"]
[EventCountry "ROU"]
[SourceTitle "playchess.com"]
[Source "ChessBase"]
[SourceQuality "1"]
[TimeControl "5400+30"]

1. e4 {[%emt 0:00:00]} c5 {[%emt 0:00:12]} 2. Nc3 {[%emt 0:00:00]} a6 {[%emt 0:00:26]} 3. a4 {[%emt 0:00:43]} e6 {[%emt 0:01:55]} 4. g3 {[%emt 0:00:15]} Nc6 {[%emt 0:06:23]} 5. Bg2 {[%emt 0:00:07]} g6 {[%emt 0:00:22]} 6. Nf3 {[%emt 0:03:36]} Bg7 {[%emt 0:00:10]} 7. O-O {[%emt 0:00:10]} Nge7 {[%emt 0:00:55]} 8. Re1 {[%emt 0:00:32]} d6 {[%emt 0:04:39]} 9. Ne2 {[%emt 0:02:06]} e5 {[%emt 0:03:49]} 10. c3 {[%emt 0:00:05]} Qb6 {[%emt 0:13:19]} 11. d4 {[%emt 0:05:30]} cxd4 {[%emt 0:04:32]} 12. cxd4 {[%emt 0:02:33]} exd4 {[%emt 0:00:20]} 13. Bf4 {[%emt 0:10:54]} O-O {[%emt 0:02:49]} 14. Bxd6 {[%emt 0:02:37]} Rd8 {[%emt 0:00:41]} 15. a5 {[%emt 0:01:04]} Qxb2 {[%emt 0:02:41]} 16. e5 {[%emt 0:27:05]} Nf5 {[%emt 0:08:39]} 17. Rb1 {[%emt 0:00:48]} Qa2 {[%emt 0:00:16]} 18. Ra1 {[%emt 0:01:44]} Qc4 {[%emt 0:08:19]} 19. Ra4 {[%emt 0:00:52]} Nxd6 {[%emt 0:01:34]} 20. Rxc4 {[%emt 0:00:10]} Nxc4 {[%emt 0:00:04]} 21. Qa4 {[%emt 0:18:14]} N6xa5 {[%emt 0:18:16]} 22. Nexd4 {[%emt 0:01:27]} b5 {[%emt 0:00:41]} 23. Qa2 {[%emt 0:01:43]} Ra7 {[%emt 0:00:16]} 24. Bf1 {[%emt 0:02:11]} Rad7 {[%emt 0:01:59]} 25. Bh3 {[%emt 0:04:43]} Rxd4 {[%emt 0:03:10]} 26. Bxc8 {[%emt 0:00:08]} Rd3 {[%emt 0:00:17]} 27. Qe2 {[%emt 0:03:58]} 1/2-1/2

[Event "27th Seacost Trophy 2017"]
[Site "Eforie Nord"]
[Date "2017.06.28"]
[Round "10"]
[White "Peptan, Corina-Isabela"]
[Black "Mihailov, Iulian"]
[Result "1/2-1/2"]
[ECO "E16"]
[WhiteElo "2403"]
[BlackElo "2054"]
[Annotator "NA"]
[PlyCount "87"]
[EventDate "2017.??.??"]
[EventType "swiss"]
[EventCountry "ROU"]
[SourceTitle "playchess.com"]
[Source "ChessBase"]
[SourceQuality "1"]
[TimeControl "5400+30"]

1. d4 {[%emt 0:00:00]} Nf6 {[%emt 0:00:01]} 2. c4 {[%emt 0:00:01]} e6 {[%emt 0:00:02]} 3. Nf3 {[%emt 0:00:06]} Bb4+ {[%emt 0:00:05]} 4. Bd2 {[%emt 0:00:25]} Qe7 {[%emt 0:00:13]} 5. g3 {[%emt 0:01:23]} Nc6 {[%emt 0:01:16]} 6. Bg2 {[%emt 0:00:23]} Bxd2+ {[%emt 0:00:30]} 7. Nbxd2 {[%emt 0:00:06]} d6 {[%emt 0:01:36]} 8. O-O {[%emt 0:02:34]} O-O {[%emt 0:00:05]} 9. e4 {[%emt 0:06:24]} e5 {[%emt 0:00:09]} 10. d5 {[%emt 0:00:04]} Nb8 {[%emt 0:00:11]} 11. b4 {[%emt 0:00:19]} a5 {[%emt 0:00:47]} 12. a3 {[%emt 0:00:13]} Na6 {[%emt 0:01:05]} 13. Qb3 {[%emt 0:30:59]} Bd7 {[%emt 0:03:08] E11: Bogo-Indian} 14. Rfc1 {[%emt 0:00:24]} axb4 {[%emt 0:06:27]} (14... Rfb8 15. Ne1 axb4 16. axb4 c5 17. dxc6 bxc6 18. Nc2 Nc7 19. Rxa8 Rxa8 20. Ne3 g6 21. Qd3 {½-½ (52) Beliavsky,A (2654)-Hertneck,G (2541) Saint Vincent 2000}) 15. axb4 {[%emt 0:00:07]} c5 {[%emt 0:03:08]} 16. dxc6 {[%emt 0:00:42]} (16. b5 $5 {[%cal Rb5a6]} Nb4 17. Ne1 $11) 16... bxc6 {[%emt 0:00:25]} 17. Qc3 {[%emt 0:04:15]} Rfe8 $146 {[%emt 0:05:45]} ({Predecessor:} 17... c5 18. b5 Nb4 19. Rcb1 Be6 20. Ne1 Nd7 21. Nf1 {1-0 (39) Llorente Zaro,A (2367)-Villuendas Valero,A (2170) Zaragoza 2006}) 18. Bf1 {[%emt 0:10:23]} c5 {[%emt 0:36:43]} 19. b5 {[%emt 0:00:23]} Nb4 {[%emt 0:00:12]} 20. Rxa8 {[%emt 0:01:27]} Rxa8 {[%emt 0:00:01]} 21. Ra1 {[%emt 0:00:13]} Qd8 {[%emt 0:00:47]} 22. Ne1 {[%emt 0:00:44]} Be6 {[%emt 0:00:35]} 23. Nd3 {[%emt 0:02:34]} Nxd3 {[%emt 0:07:53]} 24. Bxd3 {[%emt 0:01:10]} Nd7 {[%emt 0:00:27]} 25. Nb3 {[%emt 0:16:27]} Rxa1+ {[%emt 0:01:11]} 26. Qxa1 {[%emt 0:00:08]} Nb6 {[%emt 0:00:07]} 27. Qa5 {[%emt 0:01:45]} Qb8 {[%emt 0:00:52]} 28. Nd2 {[%emt 0:00:17]} f6 {[%emt 0:00:37]} 29. h4 {[%emt 0:02:39]} Kf8 {[%emt 0:00:36]} 30. Kh2 {[%emt 0:00:35]} Ke7 {[%emt 0:00:15]} 31. Bf1 {[%emt 0:00:40]} Kd8 {[%emt 0:08:09]} 32. Bh3 {[%emt 0:06:41]} Bf7 $11 {[%emt 0:00:25]} 33. Bf1 {[%emt 0:01:44]} Kc7 {[%emt 0:00:36]} 34. Be2 {[%emt 0:03:58]} Qa8 {[%emt 0:00:24]} 35. Qc3 {[%emt 0:00:08]} Qa4 {[%emt 0:03:35]} 36. Kg2 {[%emt 0:00:04]} Qb4 {[%emt 0:02:39]} 37. Qd3 {[%emt 0:01:24]} Na4 {[%emt 0:02:56]} 38. Qc2 {[%emt 0:00:23]} Nb6 {[%emt 0:03:28]} 39. Bd3 {[%emt 0:02:20]} Qa4 {[%emt 0:00:34]} 40. Qc1 {[%emt 0:00:38]} Qa2 {[%emt 0:00:46]} 41. Qc3 {[%emt 0:00:55]} Qa4 {[%emt 0:01:02]} 42. Qc1 {[%emt 0:00:43]} Qa2 {[%emt 0:00:26]} 43. Qc3 {[%emt 0:01:23]} Qa4 {[%emt 0:00:15]} 44. Qc1 {[%emt 0:01:16]} 1/2-1/2

[Event "27th Seacost Trophy 2017"]
[Site "Eforie Nord"]
[Date "2017.06.28"]
[Round "10"]
[White "Dragomirescu, Angela"]
[Black "Vasiliu, Cosmin"]
[Result "1-0"]
[ECO "A05"]
[WhiteElo "2228"]
[BlackElo "2016"]
[Annotator "NA"]
[PlyCount "97"]
[EventDate "2017.??.??"]
[EventType "swiss"]
[EventCountry "ROU"]
[SourceTitle "playchess.com"]
[Source "ChessBase"]
[SourceQuality "1"]
[TimeControl "5400+30"]

1. Nf3 {[%emt 0:01:16]} Nf6 {[%emt 0:00:32]} 2. g3 {[%emt 0:01:16]} g6 {[%emt 0:00:32]} 3. b3 {[%emt 0:00:07]} Bg7 {[%emt 0:00:12]} 4. Bb2 {[%emt 0:00:05]} O-O {[%emt 0:00:27]} 5. c4 {[%emt 0:01:22]} c6 {[%emt 0:03:31]} 6. Bg2 {[%emt 0:01:31]} d5 {[%emt 0:00:04]} 7. O-O {[%emt 0:00:27]} Bg4 {[%emt 0:01:59]} 8. h3 {[%emt 0:05:24]} Bxf3 {[%emt 0:00:10]} 9. Bxf3 {[%emt 0:00:04]} Nbd7 {[%emt 0:14:15]} 10. Qc2 {[%emt 0:12:04]} e5 {[%emt 0:02:28]} 11. d3 {[%emt 0:00:36]} (11. d4 $5 {[%cal Rd4e5]}) 11... Rc8 {[%emt 0:03:30]} 12. Nd2 {[%emt 0:01:56]} Re8 {[%emt 0:01:56]} 13. Rac1 $146 {[%emt 0:03:33] A11: English Opening: 1...c6} ({Predecessor:} 13. Rab1 Qe7 14. Rfd1 Qe6 15. Bg2 Nh5 16. Rdc1 d4 17. c5 Bf8 18. b4 Nhf6 19. Re1 Nd5 20. Qb3 a5 21. a3 axb4 22. axb4 b6 23. Bxd5 {½-½ (23) Miles,A (2375)-Cafferty,B (2355) Birmingham 1974}) 13... h5 {[%emt 0:09:53]} 14. Bg2 {[%emt 0:06:34]} Nb6 {[%emt 0:25:04]} 15. b4 {[%emt 0:17:35]} dxc4 {[%emt 0:06:14]} 16. Nxc4 {[%emt 0:08:06]} Nxc4 {[%emt 0:02:39]} 17. Qxc4 {[%emt 0:00:51]} Nd7 {[%emt 0:03:14]} 18. b5 {[%emt 0:06:38]} Nb8 {[%emt 0:07:43]} 19. Qb3 {[%emt 0:05:11]} Qd7 {[%emt 0:01:13]} 20. a4 {[%emt 0:00:37]} Qe6 {[%emt 0:00:40]} (20... a6 $14) 21. Qxe6 {[%emt 0:03:15]} Rxe6 {[%emt 0:00:15]} 22. Rc2 {[%emt 0:02:40]} a6 $16 {[%emt 0:03:57]} 23. Rb1 {[%emt 0:03:33]} axb5 {[%emt 0:01:21]} 24. axb5 {[%emt 0:00:03]} Rd8 {[%emt 0:02:47]} 25. Bc1 {[%emt 0:06:05]} cxb5 {[%emt 0:02:22]} 26. Bxb7 {[%emt 0:02:56]} Rb6 {[%emt 0:00:52]} 27. Bf3 {[%emt 0:00:15]} b4 {[%emt 0:00:50]} 28. Bg5 {[%emt 0:00:58]} f6 {[%emt 0:01:32]} 29. Be3 {[%emt 0:00:05]} Rb5 {[%emt 0:00:01]} 30. Rb3 {[%emt 0:02:38]} Bf8 {[%emt 0:00:10]} 31. Be4 {[%emt 0:01:14]} f5 {[%emt 0:01:29]} 32. Bg2 {[%emt 0:01:12]} Bd6 {[%emt 0:00:12]} 33. f4 {[%emt 0:01:10]} Re8 {[%emt 0:00:44]} 34. Kf2 {[%emt 0:00:08]} h4 {[%emt 0:00:19]} 35. gxh4 {[%emt 0:00:58]} exf4 {[%emt 0:01:50]} 36. Bd4 {[%emt 0:01:11]} Be7 {[%emt 0:00:46]} 37. h5 {[%emt 0:01:01]} gxh5 {[%emt 0:00:15]} 38. Bf3 {[%emt 0:00:17]} Rd8 {[%emt 0:01:11]} 39. Ba7 {[%emt 0:01:00]} Na6 {[%emt 0:01:41]} 40. d4 {[%emt 0:00:52]} Rd7 {[%emt 0:00:54]} 41. Bc6 {[%emt 0:00:21]} Rc7 {[%emt 0:00:25]} 42. Bxb5 {[%emt 0:00:07]} Rxc2 {[%emt 0:00:03]} 43. Bxa6 {[%emt 0:00:05]} Kg7 {[%emt 0:00:21]} 44. Bd3 {[%emt 0:00:31]} Rc1 {[%emt 0:00:20]} 45. Rb1 {[%emt 0:00:43]} Rc3 {[%emt 0:00:34]} 46. Bc5 {[%emt 0:01:25]} Bxc5 {[%emt 0:00:08]} 47. dxc5 {[%emt 0:00:01]} Rxc5 {[%emt 0:00:06]} 48. Rxb4 {[%emt 0:00:04]} Kf6 {[%emt 0:00:21]} 49. Rb5 1-0